fUSD/lending_fUSD_20240318
["ID","MTS","AMOUNT","RATE_DAILY","PERIOD"]
[319483304,1710799984666,-1980.05,0.00025205,2]
[319483305,1710799984677,-1006.81,0.00025205,2]
[319483306,1710799984687,-1334.24,0.00025205,2]
[319483307,1710799984696,-500.0,0.00025205,2]
[319483308,1710799984708,-500.0,0.00025205,2]
[319483309,1710799984718,-772.45,0.00025205,2]
[319483310,1710799984727,-577.06,0.00025205,2]
[319483311,1710799984737,-879.01,0.00025205,2]
[319483312,1710799984747,-1289.15,0.00025205,2]
[319483313,1710799984756,-500.0,0.00025205,2]
[319483314,1710799984765,-1162.86,0.00025205,2]
[319483315,1710799984775,-500.0,0.00025205,2]
[319483316,1710799984784,-539.59,0.00025205,2]
[319483317,1710799984794,-1284.59,0.00025205,2]
[319483318,1710799984803,-1343.86,0.00025205,2]
[319483319,1710799984812,-2423.47,0.00025205,2]
[319483320,1710799984821,-790.0,0.00025205,2]
[319483321,1710799984830,-1561.78,0.00025205,2]
[319483322,1710799984839,-2345.93,0.00025205,2]
[319483323,1710799984848,-1543.03,0.00025205,2]
[319483324,1710799984858,-688.89,0.00025205,2]
[319483325,1710799984867,-500.0,0.00025205,2]
[319483326,1710799984876,-779.42,0.00025205,2]
[319483327,1710799984885,-1455.91,0.00025205,2]
[319483328,1710799984894,-964.51,0.00025205,2]
[319483329,1710799984903,-1604.71,0.00025205,2]
[319483330,1710799984913,-865.84,0.00025205,2]
[319483331,1710799984922,-500.0,0.00025205,2]
[319483332,1710799984932,-1347.47,0.00025205,2]
[319483333,1710799984941,-1883.82,0.00025205,2]
[319483334,1710799984951,-500.0,0.00025205,2]
[319483335,1710799984963,-615.15,0.00025205,2]
[319483336,1710799984972,-214.28381337,0.00025205,2]
[319483337,1710799984981,-500.0,0.00025205,2]
[319483338,1710799984990,-743.05,0.00025205,2]
[319483339,1710799984999,-1288.43,0.00025205,2]
[319483340,1710799985008,-532.05,0.00025205,2]
[319483341,1710799985018,-1050.86,0.00025205,2]
[319483342,1710799985027,-568.35,0.00025205,2]
[319483343,1710799985037,-237.39527935,0.00025205,2]
[319483344,1710799985046,-230.94898159,0.00025205,2]
[319483345,1710799985057,-500.0,0.00025205,2]
[319483346,1710799985067,-255.14363423,0.00025205,2]
[319483347,1710799985077,-801.95,0.00025205,2]
[319483348,1710799985087,-1387.79,0.00025205,2]
[319483349,1710799985096,-3692.13,0.00025205,2]
[319483350,1710799985107,-1021.88,0.00025205,2]
[319483351,1710799985116,-1736.34,0.00025205,2]
[319483352,1710799985126,-510.71144175,0.00025205,2]
[319483353,1710799985135,-722.05,0.00025205,2]
[319483354,1710799985145,-2682.4,0.00025205,2]
[319483355,1710799985154,-533.11330226,0.00025205,2]
[319483356,1710799985163,-917.72,0.00025205,2]
[319483357,1710799985172,-1582.16,0.00025205,2]
[319483358,1710799985181,-500.0,0.00025205,2]
[319483359,1710799985191,-500.0,0.00025205,2]
[319483360,1710799985200,-500.0,0.00025205,2]
[319483361,1710799985212,-500.0,0.00025205,2]
[319483362,1710799985222,-500.0,0.00025205,2]
[319483363,1710799985231,-500.0,0.00025205,2]
[319483364,1710799985240,-899.67,0.00025205,2]
[319483365,1710799985250,-505.39719546,0.00025205,2]
[319483366,1710799985259,-1197.99,0.00025205,2]
[319483367,1710799985268,-2570.57,0.00025205,2]
[319483368,1710799985277,-832.49,0.00025205,2]
[319483369,1710799985287,-322.4,0.00025205,2]
[319483370,1710799985296,-500.0,0.00025205,2]
[319483371,1710799985305,-2336.68,0.00025205,2]
[319483372,1710799985315,-714.57,0.00025205,2]
[319483373,1710799985324,-572.14,0.00025205,2]
[319483374,1710799985333,-570.84,0.00025205,2]
[319483375,1710799985342,-1267.22,0.00025205,2]
[319483376,1710799985351,-1986.27,0.00025205,2]
[319483377,1710799985360,-500.0,0.00025205,2]
[319483378,1710799985370,-500.0,0.00025205,2]
[319483379,1710799985380,-1031.5,0.00025205,2]
[319483380,1710799985389,-447.11314063,0.00025205,2]
[319483381,1710799985398,-713.53,0.00025205,2]
[319483382,1710799985408,-1487.73,0.00025205,2]
[319483383,1710799985417,-500.0,0.00025205,2]
[319483384,1710799985427,-1462.06,0.00025205,2]
[319483385,1710799985437,-1113.91,0.00025205,2]
[319483386,1710799985447,-662.67,0.00025205,2]
[319483387,1710799985459,-1374.98,0.00025205,2]
[319483388,1710799985468,-500.0,0.00025205,2]
[319483389,1710799985477,-2453.88,0.00025205,2]
[319483390,1710799985486,-584.72,0.00025205,2]
[319483391,1710799985496,-2831.64,0.00025205,2]
[319483392,1710799985505,-1349.99,0.00025205,2]
[319483393,1710799985515,-1580.15,0.00025205,2]
[319483394,1710799985524,-1466.21,0.00025205,2]
[319483395,1710799985533,-432.9594807,0.00025205,2]
[319483396,1710799985542,-500.0,0.00025205,2]
[319483397,1710799985551,-1118.72,0.00025205,2]
[319483398,1710799985561,-500.0,0.00025205,2]
[319483399,1710799985570,-606.91,0.00025205,2]
[319483400,1710799985580,-500.0,0.00025205,2]
[319483401,1710799985590,-1958.41,0.00025205,2]
[319483402,1710799985599,-605.4,0.00025205,2]
[319483403,1710799985612,-500.0,0.00025205,2]
[319483404,1710799985621,-500.0,0.00025205,2]
[319483405,1710799985630,-500.0,0.00025205,2]
[319483406,1710799985641,-942.42,0.00025205,2]
[319483407,1710799985651,-569.15,0.00025205,2]
[319483408,1710799985660,-500.0,0.00025205,2]
[319483409,1710799985671,-1400.41,0.00025205,2]
[319483410,1710799985682,-941.12,0.00025205,2]
[319483411,1710799985693,-500.0,0.00025205,2]
[319483412,1710799985702,-1781.44,0.00025205,2]
[319483413,1710799985712,-500.0,0.00025205,2]
[319483414,1710799985721,-500.0,0.00025205,2]
[319483415,1710799985731,-1912.95,0.00025205,2]
[319483416,1710799985740,-713.68,0.00025205,2]
[319483417,1710799985750,-1203.57,0.00025205,2]
[319483418,1710799985759,-905.72,0.00025205,2]
[319483419,1710799985768,-500.0,0.00025205,2]
[319483420,1710799985778,-500.0,0.00025205,2]
[319483421,1710799985787,-4393.41,0.00025205,2]
[319483422,1710799985796,-2303.75,0.00025205,2]
[319483423,1710799985805,-500.0,0.00025205,2]
[319483424,1710799985816,-1144.14,0.00025205,2]
[319483425,1710799985825,-1229.49,0.00025205,2]
[319483426,1710799985834,-511.29,0.00025205,2]
[319483427,1710799985843,-1401.22,0.00025205,2]
[319483428,1710799985852,-500.0,0.00025205,2]
[319483429,1710799985861,-1432.28,0.00025205,2]
[319483430,1710799985871,-500.0,0.00025205,2]
[319483431,1710799985879,-516.82,0.00025205,2]
[319483432,1710799985889,-500.0,0.00025205,2]
[319483433,1710799985898,-1305.33,0.00025205,2]
[319483434,1710799985908,-581.47,0.00025205,2]
[319483435,1710799985917,-678.53,0.00025205,2]
[319483436,1710799985926,-1022.21,0.00025205,2]
[319483437,1710799985935,-500.0,0.00025205,2]
[319483438,1710799985944,-737.52,0.00025205,2]
[319483439,1710799985954,-1654.91,0.00025205,2]
[319483440,1710799985963,-745.31,0.00025205,2]
[319483441,1710799985972,-522.71021145,0.00025205,2]
[319483442,1710799985982,-20689.66,0.00025205,2]
[319483443,1710799985991,-7202.93,0.00025205,2]
[319483444,1710799985999,-2992.02,0.00025205,2]
[319483445,1710799986008,-500.0,0.00025205,2]
[319483446,1710799986018,-638.22,0.00025205,2]
[319483447,1710799986027,-1110.24,0.00025205,2]
[319483448,1710799986037,-1088.66,0.00025205,2]
[319483449,1710799986046,-1157.8,0.00025205,2]
[319483450,1710799986055,-1090.38,0.00025205,2]
[319483451,1710799986064,-1367.92,0.00025205,2]
[319483452,1710799986073,-500.0,0.00025205,2]
[319483453,1710799986082,-8212.3,0.00025205,2]
[319483454,1710799986091,-1716.46,0.00025205,2]
[319483455,1710799986100,-1412.21,0.00025205,2]
[319483456,1710799986109,-204.81560905,0.00025205,2]
[319483457,1710799986118,-605.07,0.00025205,2]
[319483458,1710799986127,-622.92,0.00025205,2]
[319483459,1710799986136,-738.47,0.00025205,2]
[319483460,1710799986145,-6843.13,0.00025205,2]
[319483461,1710799986154,-2375.9,0.00025205,2]
[319483462,1710799986163,-1814.94,0.00025205,2]
[319483463,1710799986172,-720.26,0.00025205,2]
[319483464,1710799986181,-642.05,0.00025205,2]
[319483465,1710799986191,-500.0,0.00025205,2]
[319483466,1710799986200,-7701.15,0.00025205,2]
[319483467,1710799986211,-2621.03,0.00025205,2]
[319483468,1710799986220,-867.51,0.00025205,2]
[319483469,1710799986229,-70618.05,0.00025205,2]
[319483470,1710799986238,-1283.55,0.00025205,2]
[319483471,1710799986247,-933.88,0.00025205,2]
[319483472,1710799986256,-651.4,0.00025205,2]
[319483473,1710799986265,-1968.24,0.00025205,2]
[319483474,1710799986274,-1507.28,0.00025205,2]
[319483475,1710799986283,-500.0,0.00025205,2]
[319483476,1710799986292,-15625.12,0.00025205,2]
[319483477,1710799986301,-2930.24,0.00025205,2]
[319483478,1710799986311,-500.0,0.00025205,2]
[319483479,1710799986321,-328.29211572,0.00025205,2]
[319483480,1710799986330,-908.19,0.00025205,2]
[319483481,1710799986340,-836.99,0.00025205,2]
[319483482,1710799986349,-1649.1,0.00025205,2]
[319483483,1710799986358,-500.0,0.00025205,2]
[319483484,1710799986368,-386.07,0.00025205,2]
[319483485,1710799986377,-1000.59,0.00025205,2]
[319483486,1710799986387,-3638.93,0.00025205,2]
[319483487,1710799986396,-500.0,0.00025205,2]
[319483488,1710799986405,-2240.25,0.00025205,2]
[319483489,1710799986415,-500.0,0.00025205,2]
[319483490,1710799986426,-352.53561418,0.00025205,2]
[319483491,1710799986436,-1827.91,0.00025205,2]
[319483492,1710799986445,-876.56,0.00025205,2]
[319483493,1710799986455,-500.0,0.00025205,2]
[319483494,1710799986464,-4659.24,0.00025205,2]
[319483495,1710799986474,-2226.67,0.00025205,2]
[319483496,1710799986484,-500.0,0.00025205,2]
[319483497,1710799986493,-500.0,0.00025205,2]
[319483498,1710799986502,-500.0,0.00025205,2]
[319483499,1710799986513,-3729.26,0.00025205,2]
[319483500,1710799986522,-500.0,0.00025205,2]
[319483501,1710799986532,-3606.56,0.00025205,2]
[319483502,1710799986541,-1207.02,0.00025205,2]
[319483503,1710799986550,-963.32,0.00025205,2]
[319483504,1710799986559,-28470.72,0.00025205,2]
[319483505,1710799986569,-2980.27,0.00025205,2]
[319483506,1710799986579,-500.0,0.00025205,2]
[319483507,1710799986590,-1000.56,0.00025205,2]
[319483508,1710799986602,-500.0,0.00025205,2]
[319483509,1710799986612,-1014.54,0.00025205,2]
[319483510,1710799986622,-1007.55,0.00025205,2]
[319483511,1710799986631,-500.0,0.00025205,2]
[319483512,1710799986641,-12991.16,0.00025205,2]
[319483513,1710799986651,-825.64,0.00025205,2]
[319483514,1710799986660,-1967.21,0.00025205,2]
[319483515,1710799986669,-500.0,0.00025205,2]
[319483516,1710799986679,-500.0,0.00025205,2]
[319483517,1710799986689,-989.42,0.00025205,2]
[319483518,1710799986699,-3061.78,0.00025205,2]
[319483519,1710799986710,-3350.06,0.00025205,2]
[319483520,1710799986719,-1418.83,0.00025205,2]
[319483521,1710799986728,-578.72,0.00025205,2]
[319483522,1710799986737,-500.0,0.00025205,2]
[319483523,1710799986746,-1283.92,0.00025205,2]
[319483524,1710799986756,-1017.47,0.00025205,2]
[319483525,1710799986765,-446.7838694,0.00025205,2]
[319483526,1710799986774,-793.34,0.00025205,2]
[319483527,1710799986784,-500.0,0.00025205,2]
[319483528,1710799986793,-544.38,0.00025205,2]
[319483529,1710799986802,-1383.54,0.00025205,2]
[319483530,1710799986811,-3058.85,0.00025205,2]
[319483531,1710799986820,-500.0,0.00025205,2]
[319483532,1710799986829,-4863.68,0.00025205,2]
[319483533,1710799986838,-3420.67,0.00025205,2]
[319483534,1710799986847,-500.0,0.00025205,2]
[319483535,1710799986856,-1467.98,0.00025205,2]
[319483536,1710799986866,-500.0,0.00025205,2]
[319483537,1710799986876,-909.74,0.00025205,2]
[319483538,1710799986885,-500.0,0.00025205,2]
[319483539,1710799986895,-500.0,0.00025205,2]
[319483540,1710799986904,-500.0,0.00025205,2]
[319483541,1710799986913,-616.14,0.00025205,2]
[319483542,1710799986923,-500.0,0.00025205,2]
[319483543,1710799986934,-1472.05,0.00025205,2]
[319483544,1710799986944,-1391.49,0.00025205,2]
[319483545,1710799986955,-500.0,0.00025205,2]
[319483546,1710799986965,-1026.28,0.00025205,2]
[319483547,1710799986975,-500.0,0.00025205,2]
[319483548,1710799986985,-501.4,0.00025205,2]
[319483549,1710799986996,-500.0,0.00025205,2]
[319483550,1710799987006,-1044.22,0.00025205,2]
[319483551,1710799987016,-736.5,0.00025205,2]
[319483552,1710799987027,-500.0,0.00025205,2]
[319483553,1710799987037,-1726.54,0.00025205,2]
[319483554,1710799987047,-2302.64,0.00025205,2]
[319483555,1710799987057,-1165.44,0.00025205,2]
[319483556,1710799987066,-12189.86,0.00025205,2]
[319483557,1710799987075,-1375.05,0.00025205,2]
[319483558,1710799987084,-1316.33,0.00025205,2]
[319483559,1710799987093,-1530.51,0.00025205,2]
[319483560,1710799987102,-515.52,0.00025205,2]
[319483561,1710799987111,-1294.68,0.00025205,2]
[319483562,1710799987120,-500.0,0.00025205,2]
[319483563,1710799987129,-1925.65,0.00025205,2]
[319483564,1710799987138,-1545.51,0.00025205,2]
[319483565,1710799987148,-728.8,0.00025205,2]
[319483566,1710799987157,-1677.75,0.00025205,2]
[319483567,1710799987166,-6062.83,0.00025205,2]
[319483568,1710799987175,-500.0,0.00025205,2]
[319483569,1710799987184,-630.76,0.00025205,2]
[319483570,1710799987194,-697.84,0.00025205,2]
[319483571,1710799987203,-505.04837578,0.00025205,2]
[319483572,1710799987213,-1154.87,0.00025205,2]
[319483573,1710799987222,-1111.24,0.00025205,2]
[319483574,1710799987231,-581.52971505,0.00025205,2]
[319483575,1710799987240,-2083.43,0.00025205,2]
[319483576,1710799987248,-500.0,0.00025205,2]
[319483577,1710799987257,-500.0,0.00025205,2]
[319483578,1710799987266,-873.95,0.00025205,2]
[319483579,1710799987275,-1539.77,0.00025205,2]
[319483580,1710799987284,-572.93,0.00025205,2]
[319483581,1710799987292,-1218.6,0.00025205,2]
[319483582,1710799987417,-500.0,0.00025205,2]
[319483583,1710799987426,-290.45056454,0.00025205,2]
[319483584,1710799987436,-762.41,0.00025205,2]
[319483585,1710799987445,-805.44,0.00025205,2]
[319483586,1710799987454,-2278.77,0.00025205,2]
[319483587,1710799987463,-2011.92,0.00025205,2]
[319483588,1710799987473,-500.0,0.00025205,2]
[319483589,1710799987481,-971.93,0.00025205,2]
[319483590,1710799987491,-2062.21,0.00025205,2]
[319483591,1710799987500,-768.87,0.00025205,2]
[319483592,1710799987509,-500.0,0.00025205,2]
[319483593,1710799987518,-500.0,0.00025205,2]
[319483594,1710799987527,-1606.59,0.00025205,2]
[319483595,1710799987536,-1340.16,0.00025205,2]
[319483596,1710799987546,-500.0,0.00025205,2]
[319483597,1710799987555,-1007.76,0.00025205,2]
[319483598,1710799987564,-4162.89,0.00025205,2]
[319483599,1710799987573,-1051.06,0.00025205,2]
[319483600,1710799987582,-500.0,0.00025205,2]
[319483601,1710799987592,-699.3,0.00025205,2]
[319483602,1710799987603,-518.73,0.00025205,2]
[319483603,1710799987613,-1416.75,0.00025205,2]
[319483604,1710799987622,-1220.37,0.00025205,2]
[319483605,1710799987631,-1475.69,0.00025205,2]
[319483606,1710799987642,-500.0,0.00025205,2]
[319483607,1710799987651,-1579.78,0.00025205,2]
[319483608,1710799987661,-960.76,0.00025205,2]
[319483609,1710799987670,-500.0,0.00025205,2]
[319483610,1710799987680,-598.24,0.00025205,2]
[319483611,1710799987690,-3689.48,0.00025205,2]
[319483612,1710799987699,-685.26,0.00025205,2]
[319483613,1710799987709,-1883.02,0.00025205,2]
[319483614,1710799987719,-725.93,0.00025205,2]
[319483615,1710799987728,-500.0,0.00025205,2]
[319483616,1710799987737,-582.85,0.00025205,2]
[319483617,1710799987746,-597.67,0.00025205,2]
[319483618,1710799987755,-945.24,0.00025205,2]
[319483619,1710799987764,-3264.27,0.00025205,2]
[319483620,1710799987774,-1114.59,0.00025205,2]
[319483621,1710799987783,-1101.09,0.00025205,2]
[319483622,1710799987792,-1090.35,0.00025205,2]
[319483623,1710799987801,-3081.47,0.00025205,2]
[319483624,1710799987811,-15199.29,0.00025205,2]
[319483625,1710799987820,-545.12,0.00025205,2]
[319483626,1710799987829,-525.35,0.00025205,2]
[319483627,1710799987838,-926.2,0.00025205,2]
[319483628,1710799987848,-524.35,0.00025205,2]
[319483629,1710799987858,-738.48,0.00025205,2]
[319483630,1710799987867,-661.43,0.00025205,2]
[319483631,1710799987876,-521.01,0.00025205,2]
[319483633,1710799987885,-3873.88,0.00025205,2]
[319483634,1710799987895,-2791.36,0.00025205,2]
[319483635,1710799987904,-1479.1,0.00025205,2]
[319483636,1710799987913,-8062.17,0.00025205,2]
[319483637,1710799987923,-1469.15,0.00025205,2]
[319483638,1710799987932,-1368.38,0.00025205,2]
[319483639,1710799987942,-500.0,0.00025205,2]
[319483640,1710799987951,-578.84,0.00025205,2]
[319483641,1710799987961,-500.0,0.00025205,2]
[319483642,1710799987970,-500.0,0.00025205,2]
[319483643,1710799987979,-500.0,0.00025205,2]
[319483644,1710799987989,-625.58,0.00025205,2]
[319483645,1710799987997,-500.0,0.00025205,2]
[319483646,1710799988006,-659.71,0.00025205,2]
[319483647,1710799988015,-500.0,0.00025205,2]
[319483648,1710799988025,-1165.69,0.00025205,2]
[319483649,1710799988034,-522.17,0.00025205,2]
[319483650,1710799988043,-500.0,0.00025205,2]
[319483651,1710799988053,-547.31,0.00025205,2]
[319483652,1710799988062,-500.0,0.00025205,2]
[319483653,1710799988071,-500.0,0.00025205,2]
[319483654,1710799988080,-1852.16,0.00025205,2]
[319483655,1710799988089,-1931.5,0.00025205,2]
[319483656,1710799988098,-5194.45,0.00025205,2]
[319483657,1710799988108,-4366.56,0.00025205,2]
[319483658,1710799988117,-2626.87,0.00025205,2]
[319483659,1710799988126,-643.53,0.00025205,2]
[319483660,1710799988136,-4566.9,0.00025205,2]
[319483661,1710799988145,-1560.19,0.00025205,2]
[319483662,1710799988155,-574.42,0.00025205,2]
[319483663,1710799988165,-7356.66,0.00025205,2]
[319483664,1710799988174,-2335.37,0.00025205,2]
[319483665,1710799988184,-1433.97,0.00025205,2]
[319483666,1710799988193,-1302.8,0.00025205,2]
[319483667,1710799988203,-12149.23,0.00025205,2]
[319483668,1710799988212,-976.06,0.00025205,2]
[319483669,1710799988222,-596.59,0.00025205,2]
[319483670,1710799988232,-500.0,0.00025205,2]
[319483671,1710799988242,-773.37,0.00025205,2]
[319483672,1710799988251,-500.0,0.00025205,2]
[319483673,1710799988260,-191.15297785,0.00025205,2]
[319483674,1710799988270,-12163.47,0.00025205,2]
[319483675,1710799988279,-500.0,0.00025205,2]
[319483676,1710799988288,-1666.88,0.00025205,2]
[319483677,1710799988297,-500.0,0.00025205,2]
[319483678,1710799988307,-1040.95,0.00025205,2]
[319483679,1710799988316,-4014.74,0.00025205,2]
[319483680,1710799988325,-676.8,0.00025205,2]
[319483681,1710799988335,-2937.18,0.00025205,2]
[319483682,1710799988345,-500.0,0.00025205,2]
[319483683,1710799988355,-798.37,0.00025205,2]
[319483684,1710799988365,-514.53,0.00025205,2]
[319483685,1710799988374,-630.18,0.00025205,2]
[319483686,1710799988384,-500.0,0.00025205,2]
[319483687,1710799988393,-4002.95,0.00025205,2]
[319483688,1710799988403,-500.0,0.00025205,2]
[319483689,1710799988413,-3032.32,0.00025205,2]
[319483690,1710799988423,-1825.34,0.00025205,2]
[319483691,1710799988433,-2538.34,0.00025205,2]
[319483692,1710799988444,-713.44,0.00025205,2]
[319483693,1710799988454,-1704.18,0.00025205,2]
[319483694,1710799988464,-2264.59,0.00025205,2]
[319483695,1710799988473,-999.91,0.00025205,2]
[319483696,1710799988483,-500.0,0.00025205,2]
[319483697,1710799988492,-1092.32,0.00025205,2]
[319483698,1710799988502,-1455.99,0.00025205,2]
[319483699,1710799988511,-1138.58,0.00025205,2]
[319483700,1710799988520,-951.86,0.00025205,2]
[319483701,1710799988530,-780.67,0.00025205,2]
[319483702,1710799988540,-500.0,0.00025205,2]
[319483703,1710799988550,-1309.57,0.00025205,2]
[319483704,1710799988559,-365.5265361,0.00025205,2]
[319483705,1710799988568,-500.0,0.00025205,2]
[319483706,1710799988578,-500.0,0.00025205,2]
[319483707,1710799988587,-4539.82,0.00025205,2]
[319483708,1710799988597,-500.0,0.00025205,2]
[319483709,1710799988609,-4994.79,0.00025205,2]
[319483710,1710799988618,-1485.77,0.00025205,2]
[319483711,1710799988627,-7034.98,0.00025205,2]
[319483712,1710799988636,-849.91,0.00025205,2]
[319483713,1710799988646,-1794.57,0.00025205,2]
[319483714,1710799988655,-500.0,0.00025205,2]
[319483715,1710799988664,-500.0,0.00025205,2]
[319483716,1710799988674,-750.9,0.00025205,2]
[319483717,1710799988684,-2385.09,0.00025205,2]
[319483718,1710799988693,-6038.49,0.00025205,2]
[319483719,1710799988704,-1615.86,0.00025205,2]
[319483720,1710799988713,-1135.58,0.00025205,2]
[319483721,1710799988723,-979.41,0.00025205,2]
[319483722,1710799988732,-6456.64,0.00025205,2]
[319483723,1710799988742,-942.12,0.00025205,2]
[319483724,1710799988752,-1504.81,0.00025205,2]
[319483725,1710799988761,-500.0,0.00025205,2]
[319483726,1710799988771,-500.0,0.00025205,2]
[319483727,1710799988780,-854.48,0.00025205,2]
[319483728,1710799988789,-508.22,0.00025205,2]
[319483729,1710799988798,-662.67,0.00025205,2]
[319483730,1710799988807,-2520.23,0.00025205,2]
[319483731,1710799988816,-2259.16,0.00025205,2]
[319483732,1710799988825,-40338.6,0.00025205,2]
[319483733,1710799988834,-4121.83,0.00025205,2]
[319483734,1710799988843,-2157.68,0.00025205,2]
[319483735,1710799988853,-1192.63,0.00025205,2]
[319483736,1710799988862,-1120.6,0.00025205,2]
[319483737,1710799988872,-500.0,0.00025205,2]
[319483738,1710799988882,-2358.27,0.00025205,2]
[319483739,1710799988891,-6231.23,0.00025205,2]
[319483740,1710799988900,-324.41,0.00025236,2]
[319483741,1710799988909,-969.801,0.00025245,4]
[319483742,1710799988918,-969.802,0.00025245,4]
[319483743,1710799988927,-969.801,0.00025245,4]
[319483744,1710799988937,-969.802,0.00025245,4]
[319483745,1710799988946,-969.801,0.00025245,4]
[319483746,1710799988957,-5850.1559099,0.00025304,2]
[319483747,1710799988968,-438.0,0.00025373,2]
[319483748,1710799988978,-151.0,0.0002544,2]
[319483749,1710799988988,-700.0,0.0002547,2]
[319483750,1710799988997,-400.0,0.0002547,2]
[319483751,1710799989007,-155.18569217,0.00025478,2]
[319483752,1710799989017,-150.0,0.00025478,2]
[319483753,1710799989027,-385.0,0.00025479,2]
[319483754,1710799989036,-754.65,0.00025479,2]
[319483755,1710799989046,-500.0,0.00025479,2]
[319483756,1710799989056,-1183.48,0.00025479,2]
[319483757,1710799989065,-841.06,0.00025479,2]
[319483758,1710799989074,-1050.21,0.00025479,2]
[319483759,1710799989083,-603.24,0.00025479,2]
[319483760,1710799989092,-864.95,0.00025479,2]
[319483761,1710799989101,-801.98,0.00025479,2]
[319483762,1710799989110,-2023.13,0.00025479,2]
[319483763,1710799989119,-2257.25,0.00025479,2]
[319483764,1710799989128,-794.11,0.00025479,2]
[319483765,1710799989137,-1080.91,0.00025479,2]
[319483766,1710799989146,-753.34,0.00025479,2]
[319483767,1710799989155,-500.0,0.00025479,2]
[319483768,1710799989164,-841.73,0.00025479,2]
[319483769,1710799989174,-637.28,0.00025479,2]
[319483770,1710799989182,-2219.16,0.00025479,2]
[319483771,1710799989192,-532.03,0.00025479,2]
[319483772,1710799989201,-822.95,0.00025479,2]
[319483773,1710799989213,-500.0,0.00025479,2]
[319483774,1710799989222,-554.31722085,0.00025479,2]
[319483775,1710799989231,-666.77,0.00025479,2]
[319483776,1710799989240,-500.0,0.00025479,2]
[319483777,1710799989250,-2410.75,0.00025479,2]
[319483778,1710799989259,-1083.62,0.00025479,2]
[319483779,1710799989268,-1096.76,0.00025479,2]
[319483780,1710799989277,-1153.52,0.00025479,2]
[319483781,1710799989286,-500.0,0.00025479,2]
[319483782,1710799989295,-1579.95,0.00025479,2]
[319483783,1710799989305,-1079.02,0.00025479,2]
[319483784,1710799989314,-500.0,0.00025479,2]
[319483785,1710799989323,-500.0,0.00025479,2]
[319483786,1710799989331,-500.0,0.00025479,2]
[319483787,1710799989340,-604.92,0.00025479,2]
[319483788,1710799989350,-500.0,0.00025479,2]
[319483789,1710799989359,-2112.17,0.00025479,2]
[319483790,1710799989368,-788.06,0.00025479,2]
[319483791,1710799989377,-965.6,0.00025479,2]
[319483792,1710799989387,-567.24,0.00025479,2]
[319483793,1710799989396,-1057.53,0.00025479,2]
[319483794,1710799989405,-1346.77,0.00025479,2]
[319483795,1710799989414,-712.98,0.00025479,2]
[319483796,1710799989423,-624.81,0.00025479,2]
[319483797,1710799989432,-1820.6,0.00025479,2]
[319483798,1710799989441,-500.0,0.00025479,2]
[319483799,1710799989450,-750.79,0.00025479,2]
[319483800,1710799989462,-628.64,0.00025479,2]
[319483801,1710799989471,-787.89,0.00025479,2]
[319483802,1710799989775,-593.51,0.00025479,2]
[319483803,1710799989786,-750.42,0.00025479,2]
[319483804,1710799989795,-622.98,0.00025479,2]